Cogmind - Beta 13 @@@ ROGUE MODE // 2024.05.08 @ 02:40:23 Player: naththebg Result: Destroyed by Y-64 Sentinel with KE Penetrator Performance ------------- Evolutions (6) 3000 Regions Visited (12) 2400 Robots Destroyed (137) 685 Value Destroyed (5973) 5973 Prototype IDs (26) 520 Alien Tech Used (0) 0 Bonus (1812) 1812 TOTAL SCORE: 14390 Bonus ------- High Alert Combat Kills 530 Follower Combat Kills 282 Met Warlord at Base 500 MAIN.C Attacked Warlord 500 Cogmind --------- Core Integrity 0/1150 Matter 300/300 Energy 102/450 System Corruption 4% Temperature Cool (9) Movement Core (100) Ox1 Location -4/Extension Parts ------- > --- POWER (2) -------- (None) > --- PROPULSION (6) --- (None) > --- UTILITY (8) ------ Energy Well Advanced Targeting Computer Improved Target Analyzer Experimental Hacking Suite > --- WEAPON (3) ------- (None) > --- INVENTORY (5) ---- Advanced Heat Sink Matter Compressor (246) Advanced Signal Interpreter Advanced Thermal Shield Improved Shock Absorption System Peak State ------------ > --- POWER ------------ Reinforced Fission Core Reinforced Antimatter Reactor > --- PROPULSION ------- Armored Leg Enhanced Flexi-carbon Leg Myomer Leg Myomer Leg Myomer Leg Myomer Leg > --- UTILITY ---------- Advanced Cryofiber Web Advanced Heat Sink High-capacity Storage Unit Advanced Targeting Computer Improved Weapon Cycler Centrium Medium Armor Plating Advanced Thermal Shield Recalibrator > --- WEAPON ----------- Vortex Rail Matter Neutralizer Mass Driver > --- INVENTORY -------- Makeshift Power Source Micro Fission Core Makeshift Leg Makeshift Leg Makeshift Leg Armored Leg Myomer Leg Myomer Leg Advanced Cooling System Advanced Coolant Injector Matter Compressor Improved Target Analyzer Kinecellerator Improved Medium Armor Plating Makeshift Light Armor Plating Improved Shock Absorption System Improved Force Field Heavy Phase Cannon Improved Remote Datajack [Rating: 127] Favorites ----------- Power Reinforced Fission Core Engine Improved Ion Engine Power Core Reinforced Fission Core Reactor Reinforced Antimatter Reactor Propulsion Armored Leg Treads Medium Treads Leg Armored Leg Utility Makeshift Light Armor Plating Device Advanced Heat Sink Storage High-capacity Storage Unit Processor Advanced Targeting Computer Hackware Experimental Hacking Suite Protection Makeshift Light Armor Plating Weapon Heavy Phase Cannon Energy Gun Vortex Rail Energy Cannon Heavy Phase Cannon Ballistic Gun Gauss Rifle Ballistic Cannon Mass Driver Launcher Heavy Missile Launcher Special Weapon Improved Remote Datajack Special Melee Weapon Improved Datajack Build | -11 -10 -9 -9 -8 -7 -6 -5 -5 -5 -4 -4 -4 ------- Run | Yrd Mat Mat Min Mat Fac Fac Fac Upp War Pro Fac Ext Slots Evolved 12 | . . 2 . 2 2 2 2 . . . 2 . Power 1 | . . . . . 1 . . . . . . . Propulsion 4 | . . 1 . . 1 1 1 . . . . . Utility 6 | . . 1 . 2 . 1 1 . . . 1 . Weapon 1 | . . . . . . . . . . . 1 . Parts Attached 236 | 6 14 5 1 19 14 20 44 24 21 11 24 33 Power 24 | 1 1 . . . 2 3 5 3 1 . 3 5 Engine 8 | 1 1 . . . 1 1 1 1 1 . . 1 Core 13 | . . . . . 1 2 4 2 . . 2 2 Reactor 3 | . . . . . . . . . . . 1 2 Propulsion 73 | 2 1 3 . 6 5 10 9 9 6 4 10 8 Treads 3 | . . . . . . . . 2 1 . . . Leg 70 | 2 1 3 . 6 5 10 9 7 5 4 10 8 Wheel . | . . . . . . . . . . . . . Hover . | . . . . . . . . . . . . . Flight . | . . . . . . . . . . . . . Utility 81 | 1 4 2 1 10 1 2 17 9 8 5 6 15 Device 39 | . . . . 6 . 1 9 4 3 5 5 6 Storage 10 | 1 2 1 . 1 . . 1 . 2 . . 2 Processor 4 | . 1 . . . . . 1 . . . 1 1 Hackware 2 | . . . . 1 . . . . . . . 1 Protection 26 | . 1 1 1 2 1 1 6 5 3 . . 5 Artifact . | . . . . . . . . . . . . . Weapon 58 | 2 8 . . 3 6 5 13 3 6 2 5 5 Energy Gun 8 | . 2 . . . . . . . 1 2 1 2 Energy Cannon 18 | . 2 . . . . . 7 1 3 . 3 2 Ballistic Gun 5 | 2 2 . . . . . . 1 . . . . Ballistic Cannon 8 | . . . . 1 2 2 . 1 1 . 1 . Launcher 14 | . 2 . . 2 2 3 5 . . . . . Special Weapon 3 | . . . . . . . 1 . 1 . . 1 Impact Weapon . | . . . . . . . . . . . . . Slashing Weapon . | . . . . . . . . . . . . . Piercing Weapon . | . . . . . . . . . . . . . Special Melee Weapon 2 | . . . . . 2 . . . . . . . Unidentified Prototypes 5 | . . . . . . . . . 4 . . 1 Parts Lost 99 | . 1 1 . 1 1 3 17 19 . 6 18 32 Power 16 | . . . . . 1 1 3 4 . . 2 5 Propulsion 35 | . 1 . . 1 . 1 4 7 . . 9 12 Utility 35 | . . 1 . . . 1 6 6 . 5 4 12 Weapon 13 | . . . . . . . 4 2 . 1 3 3 Highest Loss Streak 20 | . 1 1 . 1 1 2 4 14 . 3 18 20 To Critical Strikes 4 | . . . . . . . . . . . 2 2 Average Slot Usage (%) 92 | . 98 96 100 97 99 89 88 87 95 98 96 83 Engine 4 | . 14 11 11 9 9 6 3 2 3 5 2 1 Core 4 | . . . . . 4 6 6 2 5 5 5 5 Treads 1 | . . . . . . . . 1 3 . . . Leg 30 | . 27 31 33 26 30 33 33 28 31 35 30 26 Device 14 | . . . . 13 15 14 20 18 11 9 21 13 Storage 6 | . 14 11 11 9 7 6 5 5 5 5 5 6 Processor 5 | . 5 11 11 9 7 3 1 5 5 5 8 5 Protection 9 | . 8 8 11 9 4 5 4 7 14 17 5 6 Energy Gun 1 | . 2 . . . . . . . 1 6 4 6 Energy Cannon 4 | . 9 11 11 4 . . 4 5 3 4 4 4 Ballistic Gun 1 | . 9 . . . . . . . 2 . . . Ballistic Cannon 1 | . . . . 2 2 . . 3 . . 3 . Launcher 2 | . 7 11 11 11 10 8 3 . . . . . Naked Turns . | . . . . . . . . . . . . . Heaviest Build 278 | 12 19 30 30 43 55 73 104 94 278 116 127 112 Greatest Support 145 | 20 20 39 39 45 55 90 104 107 124 139 145 140 Greatest Overweight (x) 3 | . 1 . . 1 1 1 1 2 3 . 1 3 Average Overweight (x) . | . . . . . . . . . . . . . Largest Inventory Capacity 35 | 8 10 10 10 15 15 15 20 20 35 20 20 20 Average Capacity 17 | 6 8 9 10 10 15 15 17 20 20 20 20 19 Most Carried 21 | 4 8 9 8 10 15 15 20 20 21 20 20 19 Average Carried 14 | 1 6 8 8 9 11 14 13 15 18 18 18 13 Final Capacity 20 | 8 8 10 10 15 15 15 20 20 20 20 20 5 Final Carried 20 | 1 8 9 8 10 15 15 14 16 20 19 10 5 Class Distribution -------------------- 50% | Mutant 31% | Derelict-Mutant 7% | Scavenger-Mutant 6% | Scavenger-Tank 4% | Scavenger-Gunner Dominant Class ---------------- Mutant | -10/Materials Mutant | -9/Materials Mutant | -9/Mines Mutant | -8/Materials Mutant | -7/Factory Mutant | -6/Factory Mutant | -5/Factory Mutant | -5/Upper Caves Derelict-Mutant | -5/Warlord Scavenger-Mutant | -4/Proximity Caves Scavenger-Gunner | -4/Factory Scavenger-Tank | -4/Extension Resources | -11 -10 -9 -9 -8 -7 -6 -5 -5 -5 -4 -4 -4 ----------- Run | Yrd Mat Mat Min Mat Fac Fac Fac Upp War Pro Fac Ext Matter Collected 3836 | 187 216 . . 107 72 236 835 913 606 124 95 445 Remotely 624 | . . . . . . . 624 . . . . . Salvage Created 4959 | . 256 . . 115 36 296 799 646 . 741 641 1429 Parts 217 | . 15 . . 15 5 14 54 15 . 27 26 46 Haulers Intercepted 5 | . 1 . . 1 . 1 . . . . 1 1 Recyclers Shooed 6 | . 1 . . . 1 . . . . . . 4 Parts Field Recycled 14 | . . . . 14 . . . . . . . . Retrieved Matter 101 | . . . . 101 . . . . . . . . Parts Self-Destructed 33 | . . . . . . . . 11 . 22 . . Prevented 1 | . . . . . . . . 1 . . . . Kills | -11 -10 -9 -9 -8 -7 -6 -5 -5 -5 -4 -4 -4 ------- Run | Yrd Mat Mat Min Mat Fac Fac Fac Upp War Pro Fac Ext Combat Hostiles Destroyed 108 | . 6 . . 4 4 7 25 13 . 25 10 14 Melee 1 | . . . . . . . . . . . . 1 Guns 21 | . 3 . . . . . . 1 . 11 1 5 Cannons 55 | . 2 . . 4 1 . 12 12 . 9 7 8 AOE 30 | . 1 . . . 3 7 12 . . 5 2 . Classes Destroyed 17 | . 5 . . 2 . 2 2 2 . 2 . 2 Worker 7 | . . . . . . 1 4 . . . 2 . Builder 5 | . 1 . . . . . 3 . . . . 1 Tunneler 2 | . . . . 1 . . . . . . 1 . Hauler 5 | . 1 . . 1 . 1 . . . . 1 1 Recycler 3 | . . . . . . . . . . . . 3 Drone 2 | . . . . . . . . . . 2 . . Watcher 7 | . 1 . . 2 . . 2 . . . 2 . Swarmer 34 | . 3 . . 3 4 3 11 . . 6 2 2 Grunt 34 | . 3 . . . . 2 5 8 . 8 2 6 Brawler 3 | . . . . . . . . 2 . 1 . . Duelist 3 | . . . . . . . . 2 . . . 1 Protector 1 | . . . . . . . . . . . . 1 Sentry 9 | . . . . 1 . 1 2 1 . 1 1 2 Specialist 4 | . . . . . . . 2 . . . 2 . Hunter 8 | . . . . . . . 1 . . 4 1 2 Programmer 9 | . . . . . . 1 4 . . 2 2 . Behemoth 1 | . . . . . . . . . . 1 . . Best Kill Streak 7 | . 4 . . 4 4 6 7 4 . 7 4 6 Combat Bots Only 7 | . 3 . . 4 4 3 5 4 . 7 4 6 Max Kills in Single Turn 4 | . 1 . . 2 3 3 4 1 . 3 4 1 Gunslinging . | . . . . . . . . . . . . . Exploded 4 | . 1 . . . 3 3 4 . . 2 2 . Melee 1 | . . . . . . . . . . . . 1 Uniques/NPCs Destroyed . | . . . . . . . . . . . . . Combat | -11 -10 -9 -9 -8 -7 -6 -5 -5 -5 -4 -4 -4 -------- Run | Yrd Mat Mat Min Mat Fac Fac Fac Upp War Pro Fac Ext Hostile Shots Fired 1432 | . 34 46 1 49 37 128 385 176 1 127 151 297 Missed 507 | . 5 17 1 21 9 63 146 60 1 33 58 93 Damage Taken 16997 | . 408 363 . 370 444 1118 3936 2293 17 1400 2161 4487 Core 1926 | . 43 46 . 67 67 40 238 180 . 92 96 1057 Absorbed by Shields 1178 | . . . . . . . 465 50 17 346 . 300 Ignored by Resistances 7 | . . . . . . . . . . . . 7 Regen/Repaired (Parts) 653 | . . . . . . . 268 . 385 . . . Core Remaining (%) 84 | 100 82 . 88 87 90 95 . . . 49 . . Volleys Fired 306 | . 28 . 1 17 7 10 56 47 6 45 25 64 Largest 3 | . 2 . 1 2 2 2 2 2 2 2 3 3 Hottest 252 | . 130 . 30 78 83 78 180 180 85 100 195 252 Shots Fired 530 | . 50 . 1 19 13 12 81 82 7 80 59 126 Gun 156 | . 25 . . . . . . 18 1 39 9 64 Cannon 315 | . 18 . . 7 12 5 59 64 1 41 50 58 Launcher 48 | . 7 . 1 12 1 7 20 . . . . . Special 11 | . . . . . . . 2 . 5 . . 4 Kinetic 107 | . 11 . . . 12 5 . 62 2 . 15 . Thermal 270 | . 32 . . 7 . . 61 13 . . 35 122 Explosive 48 | . 7 . 1 12 1 7 20 . . . . . Electromagnetic 7 | . . . . . . . . 7 . . . . Entropic 89 | . . . . . . . . . . 80 9 . Robot Hit Streak 21 | . 5 . 6 11 2 4 9 17 7 8 9 21 Robot Miss Streak 6 | . 3 . . 1 3 5 4 2 . 6 5 3 Penetration Max 2 | . . . . . . . . . . 2 . . Secondary Targets 2 | . . . . . . . . . . 2 . . Max Gunslinging Chain 1 | . . . . . . . . . . 1 . . Shots Hit Robots 342 | . 25 . 1 14 12 4 47 62 5 48 32 92 Core Hits 224 | . 14 . 3 9 4 12 61 23 . 35 20 43 Critical Kills 2 | . . . . . . . 1 . . . 1 . Critical Parts Destroyed 7 | . . . . . . . . . . 7 . . Critical Strikes 22 | . . . . . 1 1 1 3 . 13 3 . Meltdown 2 | . . . . . . . 1 . . . 1 . Blast 7 | . . . . . 1 1 . 3 . . 2 . Detonate 7 | . . . . . . . . . . 7 . . Sunder 6 | . . . . . . . . . . 6 . . Melee Attacks 8 | . . . . . 8 . . . . . . . Impact . | . . . . . . . . . . . . . Slashing . | . . . . . . . . . . . . . Piercing . | . . . . . . . . . . . . . Sneak Attacks 7 | . . . . . 7 . . . . . . . Combat Hostiles . | . . . . . . . . . . . . . Follow-up Attacks . | . . . . . . . . . . . . . Damage Inflicted 16218 | . 425 14 53 684 326 638 4165 1801 . 3720 1761 2631 Guns 2929 | . 130 . . . . . . 335 . 1297 106 1061 Cannons 7471 | . 210 . . 122 106 89 1356 1463 . 1544 1097 1484 Explosions 5502 | . 81 . 53 558 215 541 2628 . . 868 558 . Melee . | . . . . . . . . . . . . . Ramming 300 | . 4 14 . 4 5 8 165 3 . 11 . 86 Kinetic 1893 | . 39 . . . 106 89 . 1392 . . 267 . Thermal 6803 | . 301 . . 122 . . 1372 308 . 868 1287 2545 Explosive 4177 | . 81 . 53 558 215 541 2628 . . . 101 . Electromagnetic 98 | . . . . . . . . 98 . . . . Impact . | . . . . . . . . . . . . . Slashing . | . . . . . . . . . . . . . Piercing . | . . . . . . . . . . . . . Entropic 2947 | . . . . . . . . . . 2841 106 . Highest Corruption 11 | . . . . . . . 11 11 8 3 3 4 Average Corruption 6 | . . . . . . . 6 8 8 2 2 3 Corruption Purged 4 | . . . . . . . . 4 . . . . Corruption Blocked 18 | . . . . . . . . . 18 . . . Effects 92 | . . . . . . . 15 56 2 2 . 17 Message Errors 18 | . . . . . . . 2 11 1 1 . 3 Matter Fused 28 | . . . . . . . 7 14 1 1 . 5 Heat Flow Errors 11 | . . . . . . . 1 8 . . . 2 Energy Discharges 13 | . . . . . . . 2 11 . . . . Parts Rejected 1 | . . . . . . . 1 . . . . . Parts Fused 1 | . . . . . . . . 1 . . . . Data Loss (minor) 12 | . . . . . . . 1 8 . . . 3 Data Loss (major) 3 | . . . . . . . . 2 . . . 1 Misfires 2 | . . . . . . . . 1 . . . 1 Alerts 1 | . . . . . . . . . . . . 1 Weapon Failures 2 | . . . . . . . 1 . . . . 1 Overload Shots . | . . . . . . . . . . . . . Overflow Damage 579 | . . . . . 2 . 205 8 . 196 135 33 Projectiles 342 | . . . . . 2 . 99 8 . 172 28 33 Explosions 235 | . . . . . . . 104 . . 24 107 . Melee 2 | . . . . . . . 2 . . . . . Knockbacks 13 | . . . . . 3 . 1 7 . . 1 1 Impact 2 | . . . . . . . 1 . . . . 1 Kinetic 9 | . . . . . 2 . . 6 . . 1 . Secondary 2 | . . . . . 1 . . 1 . . . . Self-Inflicted Damage 408 | . 40 . . 63 22 25 110 . . 86 62 . Shots 11 | . 2 . . 1 1 1 4 . . 1 1 . Rammed . | . . . . . . . . . . . . . Targets Rammed 33 | . 2 2 . 2 1 3 15 1 . 1 . 6 Kicked 33 | . 2 2 . 2 1 3 15 1 . 1 . 6 Crushed . | . . . . . . . . . . . . . Highest Temperature 581 | . 411 . . 106 . . 372 581 . 362 385 243 Average Temperature 133 | . 191 . . 37 . . 104 155 . 126 162 97 Received Heat Transfer 3099 | . 162 153 . 54 . 192 517 973 . 105 12 931 Effects 16 | . 1 . . . . . . 10 . 5 . . Shutdowns 3 | . 1 . . . . . . 1 . 1 . . Energy Bleed 3 | . . . . . . . . 1 . 2 . . Interference 2 | . . . . . . . . 2 . . . . Matter Decay 3 | . . . . . . . . 2 . 1 . . Short Circuit 1 | . . . . . . . . . . 1 . . Damage (minor) 1 | . . . . . . . . 1 . . . . Damage (major) 3 | . . . . . . . . 3 . . . . Siege Activations . | . . . . . . . . . . . . . Robots Corrupted . | . . . . . . . . . . . . . Combat Hostiles . | . . . . . . . . . . . . . Parts Fried 2 | . . . . . . . . 2 . . . . Impact Corruptions 2 | . . . . . 1 . 1 . . . . . Robots Melted 3 | . . . . . . . 1 . . . 1 1 Combat Hostiles 1 | . . . . . . . 1 . . . . . Parts Melted 19 | . . . . 1 . . 6 . . . 1 11 Heat Transferred 7416 | . 666 . . 259 . . 1332 296 . 700 1164 2999 Parts Sabotaged . | . . . . . . . . . . . . . Parts Stolen . | . . . . . . . . . . . . . Parts Stripped . | . . . . . . . . . . . . . Power Chain Reactions . | . . . . . . . . . . . . . Alert | -11 -10 -9 -9 -8 -7 -6 -5 -5 -5 -4 -4 -4 ------- Run | Yrd Mat Mat Min Mat Fac Fac Fac Upp War Pro Fac Ext Peak Influence 843 | . 231 121 85 227 109 348 786 . . . 843 517 Initial 629 | . . 16 43 25 11 13 105 . . . 629 367 Average 289 | . 98 49 48 146 50 186 385 . . . 658 377 Maximum Alert Level 3 | . 1 . . 1 . 1 3 . . . 3 2 Low Security (%) 42 | 100 86 100 100 76 100 43 26 . . . . . Level 1 27 | . 13 . . 23 . 56 25 . . . . 63 Level 2 22 | . . . . . . . 31 . . . 67 36 Level 3 7 | . . . . . . . 16 . . . 32 . Level 4 . | . . . . . . . . . . . . . Level 5 . | . . . . . . . . . . . . . High Security . | . . . . . . . . . . . . . Max Security . | . . . . . . . . . . . . . Squads Dispatched 25 | . 1 . . 1 . 4 9 . . . 8 2 Investigation 7 | . 1 . . . . 1 3 . . . 1 1 Extermination 4 | . . . . . . 1 2 . . . 1 . Reinforcement 7 | . . . . 1 . . 3 . . . 3 . Assault 2 | . . . . . . . 1 . . . . 1 Garrison 5 | . . . . . . 2 . . . . 3 . Intercept . | . . . . . . . . . . . . . Searches Triggered 1 | . . . . . . . . . . . 1 . Construction Impeded 2 | . . . . . . . 2 . . . . . Haulers Reinforced 1 | . . . . . . . . . . . 1 . Active Scanning Responses . | . . . . . . . . . . . . . Cargo Convoy Interrupts . | . . . . . . . . . . . . . Stealth | -11 -10 -9 -9 -8 -7 -6 -5 -5 -5 -4 -4 -4 --------- Run | Yrd Mat Mat Min Mat Fac Fac Fac Upp War Pro Fac Ext Distress Signals 3 | . . 2 . . . . . . . 1 . . Communications Jammed . | . . . . . . . . . . . . . Distress Signals . | . . . . . . . . . . . . . Times Spotted 208 | . 7 17 2 8 4 15 50 19 1 26 14 45 Peak Tracking Total 14 | . 3 11 3 4 5 4 7 8 2 7 6 14 Tactical Retreats 27 | . . 1 1 . . 2 8 9 . . 2 4 Traps | -11 -10 -9 -9 -8 -7 -6 -5 -5 -5 -4 -4 -4 ------- Run | Yrd Mat Mat Min Mat Fac Fac Fac Upp War Pro Fac Ext Traps Triggered 5 | . . . . . . 2 1 . . . 1 1 Indirectly . | . . . . . . . . . . . . . Trap Hack Attempts . | . . . . . . . . . . . . . Triggered . | . . . . . . . . . . . . . Disarmed . | . . . . . . . . . . . . . Reprogrammed . | . . . . . . . . . . . . . Reused . | . . . . . . . . . . . . . Traps Extracted . | . . . . . . . . . . . . . Installed . | . . . . . . . . . . . . . Triggered 20 | . . . . . . . . 1 15 4 . . Machines | -11 -10 -9 -9 -8 -7 -6 -5 -5 -5 -4 -4 -4 ---------- Run | Yrd Mat Mat Min Mat Fac Fac Fac Upp War Pro Fac Ext Machines Disabled 33 | . 1 . . 1 . 4 14 . . 2 10 1 Max in Single Turn 12 | . 1 . . 1 . 2 12 . . 1 4 1 Machines Repaired . | . . . . . . . . . . . . . Machines Dismantled . | . . . . . . . . . . . . . Machines Sabotaged . | . . . . . . . . . . . . . Overloaded Fab Kills . | . . . . . . . . . . . . . Hacking | -11 -10 -9 -9 -8 -7 -6 -5 -5 -5 -4 -4 -4 --------- Run | Yrd Mat Mat Min Mat Fac Fac Fac Upp War Pro Fac Ext Machines Accessed 47 | . 2 . . 3 5 2 10 1 12 1 4 7 Terminals 23 | . 2 . . 2 4 1 4 . . 1 3 6 Fabricators 1 | . . . . . . . 1 . . . . . Repair Stations 1 | . . . . . . . 1 . . . . . Recycling Units 7 | . . . . 1 1 1 3 . . . . 1 Scanalyzers 1 | . . . . . . . 1 . . . . . Garrison Access 1 | . . . . . . . . . . . 1 . Total Hacks 99 | . 6 . . 9 8 5 27 1 21 2 9 11 Successful 57 | . 4 . . 5 3 3 13 1 21 2 3 2 Failed 42 | . 2 . . 4 5 2 14 . . . 6 9 Catastrophic 8 | . . . . 1 2 . 3 . . . . 2 Database Lockouts . | . . . . . . . . . . . . . Manual 5 | . . . . . . . 1 . 1 . 3 . Terminals 52 | . 6 . . 7 7 3 10 . . 2 7 10 Fabricators 3 | . . . . . . . 3 . . . . . Repair Stations 3 | . . . . . . . 3 . . . . . Recycling Units 12 | . . . . 2 1 2 6 . . . . 1 Scanalyzers 5 | . . . . . . . 5 . . . . . Garrison Access 2 | . . . . . . . . . . . 2 . Terminal Hacks 43 | . 4 . . 3 3 1 3 1 21 2 3 2 Record 12 | . . . . . . . . . 10 2 . . Prototype ID Bank 11 | . 1 . . . . . . . 9 . 1 . Open Door 5 | . . . . . . . . 1 2 . . 2 Open DSF 3 | . . . . . 1 1 . . . . 1 . Branch Access Points 1 | . . . . . . . . . . . 1 . Emergency Access Points 1 | . . . . 1 . . . . . . . . Terminal Index 1 | . . . . 1 . . . . . . . . Alert Level 2 | . . . . 1 . . 1 . . . . . Unreport Threat 1 | . . . . . . . 1 . . . . . Locate Traps 2 | . . . . . 1 . 1 . . . . . Registered Components 1 | . 1 . . . . . . . . . . . Registered Prototypes 1 | . 1 . . . . . . . . . . . Zone Layout 2 | . 1 . . . 1 . . . . . . . Fabricator Hacks 1 | . . . . . . . 1 . . . . . Network Status 1 | . . . . . . . 1 . . . . . Repair Station Hacks 2 | . . . . . . . 2 . . . . . Scan Component 1 | . . . . . . . 1 . . . . . Repair 1 | . . . . . . . 1 . . . . . Recycling Unit Hacks 6 | . . . . 2 . 2 2 . . . . . Process 3 | . . . . 1 . 1 1 . . . . . Retrieve Matter 3 | . . . . 1 . 1 1 . . . . . Scanalyzer 5 | . . . . . . . 5 . . . . . Insert Component 2 | . . . . . . . 2 . . . . . Analyze 3 | . . . . . . . 3 . . . . . Garrison Access Hacks . | . . . . . . . . . . . . . Unauthorized Hacks . | . . . . . . . . . . . . . Terminals . | . . . . . . . . . . . . . Fabricators . | . . . . . . . . . . . . . Repair Stations . | . . . . . . . . . . . . . Recycling Units . | . . . . . . . . . . . . . Scanalyzers . | . . . . . . . . . . . . . Garrison Access . | . . . . . . . . . . . . . Data Cores Recovered . | . . . . . . . . . . . . . Used . | . . . . . . . . . . . . . Hacking Detections 27 | . 1 . . 2 4 1 9 . . 1 4 5 Full Trace Events 6 | . 1 . . . . . 3 . . . 1 1 Feedback Events . | . . . . . . . . . . . . . Feedback Blocked . | . . . . . . . . . . . . . Robot Schematics Acquired . | . . . . . . . . . . . . . Robots Built . | . . . . . . . . . . . . . Authchips . | . . . . . . . . . . . . . Time . | . . . . . . . . . . . . . Total Robot Build Rating . | . . . . . . . . . . . . . Part Schematics Acquired 2 | . . . . . . . 2 . . . . . Parts Built . | . . . . . . . . . . . . . Authchips . | . . . . . . . . . . . . . Time . | . . . . . . . . . . . . . Total Part Build Rating . | . . . . . . . . . . . . . Parts Repaired 1 | . . . . . . . 1 . . . . . Time 38 | . . . . . . . 38 . . . . . Parts Recycled . | . . . . . . . . . . . . . Recycled Matter 188 | . . . . 120 . 29 39 . . . . . Retrieved Matter 188 | . . . . 120 . 29 39 . . . . . Retrieved Components . | . . . . . . . . . . . . . Parts Scanalyzed 2 | . . . . . . . 2 . . . . . Part Schematics Acquired 2 | . . . . . . . 2 . . . . . Parts Damaged . | . . . . . . . . . . . . . Bothacking | -11 -10 -9 -9 -8 -7 -6 -5 -5 -5 -4 -4 -4 ------------ Run | Yrd Mat Mat Min Mat Fac Fac Fac Upp War Pro Fac Ext Used RIF Installer . | . . . . . . . . . . . . . Robots Hacked 2 | . . . . . 2 . . . . . . . Non-combat 2 | . . . . . 2 . . . . . . . Combat . | . . . . . . . . . . . . . Robot Hacks Applied 6 | . . . . . 6 . . . . . . . parse_system 1 | . . . . . 1 . . . . . . . no_distress 1 | . . . . . 1 . . . . . . . find_fabricator 2 | . . . . . 2 . . . . . . . find_dsf 1 | . . . . . 1 . . . . . . . find_recycling 1 | . . . . . 1 . . . . . . . Relay Couplers Released . | . . . . . . . . . . . . . Fabnet Peak Effective % . | . . . . . . . . . . . . . Robots Rewired 8 | . . . . . . . . . 5 . . 3 Allies Hacked . | . . . . . . . . . . . . . Hacks Repelled . | . . . . . . . . . . . . . Allies | -11 -10 -9 -9 -8 -7 -6 -5 -5 -5 -4 -4 -4 -------- Run | Yrd Mat Mat Min Mat Fac Fac Fac Upp War Pro Fac Ext Total Allies 15 | . . . 2 . . . . . 5 . . 8 Largest Group 5 | . . . 2 . . . . . 5 1 . 3 Highest-Rated Group 272 | . . . 43 . . . . . 272 60 . 130 Highest-Rated Ally 68 | . . . 31 . . . . . 68 60 . 46 Total Orders . | . . . . . . . . . . . . . Ally Attacks 52 | . . . 7 . . . . . 12 . . 33 Total Damage 1661 | . . . 106 . . . . . 539 . . 1016 Kills 8 | . . . 1 . . . . . 3 . . 4 Allies Corrupted . | . . . . . . . . . . . . . Allies Melted 1 | . . . . . . . . . 1 . . . Intel | -11 -10 -9 -9 -8 -7 -6 -5 -5 -5 -4 -4 -4 ------- Run | Yrd Mat Mat Min Mat Fac Fac Fac Upp War Pro Fac Ext Robot Analysis Total . | . . . . . . . . . . . . . Derelict Logs Recovered 2 | . . . . . . . . 1 . 1 . . Drone Launches . | . . . . . . . . . . . . . Drone Recoveries . | . . . . . . . . . . . . . Exploration | -11 -10 -9 -9 -8 -7 -6 -5 -5 -5 -4 -4 -4 ------------- Run | Yrd Mat Mat Min Mat Fac Fac Fac Upp War Pro Fac Ext Turns Passed 9928 | 68 485 187 164 423 518 665 1512 1616 2118 614 603 955 Spaces Moved 6234 | 49 274 146 135 252 374 551 1018 944 1206 388 328 569 Core 8 | 4 . . . . . . . . . . . 4 Treads . | . . . . . . . . . . . . . Legs 6226 | 45 274 146 135 252 374 551 1018 944 1206 388 328 565 Wheels . | . . . . . . . . . . . . . Hover . | . . . . . . . . . . . . . Flight . | . . . . . . . . . . . . . Fastest Speed 50 | 50 120 120 120 100 90 96 105 112 128 120 115 100 Average Speed 131 | 114 121 120 120 134 102 100 115 149 163 120 131 125 Slowest Speed 342 | 120 190 120 120 190 180 182 190 260 342 130 203 203 Overloaded Moves . | . . . . . . . . . . . . . Propulsion Burnouts . | . . . . . . . . . . . . . Robots Hopped . | . . . . . . . . . . . . . Cave-ins Triggered . | . . . . . . . . . . . . . Exploration Rate (%) 37 | 4 47 23 35 20 8 16 31 87 93 59 11 51 Regions Visited 12 Branch Regions 5 Pre-discovered Areas 3 | . . . . . . . . . 2 1 . . Known Exits Taken 1 | . . . . . . . . . . . 1 . Unknown Exits Taken 11 | 1 1 1 1 1 1 1 1 1 1 1 . . Scrap Searched 5 | . . . . . . . . 4 . 1 . . Spaces Dug 5 | . . . . . . . 4 . 1 . . . Terrain Destroyed 591 | . 34 . 10 56 14 63 177 22 1 143 62 9 Melee . | . . . . . . . . . . . . . Projectile 162 | . . . . . . 1 19 22 1 89 21 9 AOE 429 | . 34 . 10 56 14 62 158 . . 54 41 . Terrain Rammed . | . . . . . . . . . . . . . Walls Destroyed . | . . . . . . . . . . . . . Machines Disabled . | . . . . . . . . . . . . . Actions | -11 -10 -9 -9 -8 -7 -6 -5 -5 -5 -4 -4 -4 --------- Run | Yrd Mat Mat Min Mat Fac Fac Fac Upp War Pro Fac Ext Total 7546 | 61 375 158 136 313 492 651 1277 1087 1351 460 466 719 Wait 475 | . 33 . . 4 76 38 110 43 76 10 68 17 Move 6223 | 48 273 145 134 251 373 551 1017 943 1205 387 327 569 Hop . | . . . . . . . . . . . . . Pick Up 167 | 7 16 3 . 9 10 11 27 23 17 6 9 29 Fast Attach 17 | . 1 1 . 3 . 2 2 . 6 . 1 1 Attach 120 | 6 1 2 1 4 3 5 28 19 3 7 15 26 Detach 15 | . . . . 2 . 3 4 . 3 . 2 1 Swap 99 | . 12 2 . 12 11 13 14 5 12 4 8 6 Drop 80 | . 9 3 . 9 3 16 4 2 23 . 11 . Fire 306 | . 28 . 1 17 7 10 56 47 6 45 25 64 Melee 8 | . . . . . 8 . . . . . . . Ram . | . . . . . . . . . . . . . Kick 32 | . 2 2 . 2 1 2 15 1 . 1 . 6 Crush . | . . . . . . . . . . . . . Escape Stasis . | . . . . . . . . . . . . . Rewire 4 | . . . . . . . . 4 . . . . Trap . | . . . . . . . . . . . . . Miscellaneous . | . . . . . . . . . . . . . Route ------- -11/Scrapyard -10/Materials -9/Materials -9/Mines -8/Materials -7/Factory -6/Factory -5/Factory -5/Upper Caves -5/Warlord -4/Proximity Caves -4/Factory (discovered 5 exits: Res / Upp x2 / *Ext x2) -4/Extension History --------- Turn | Location | Event 2 | -11/Scrapyard | Met Revision 17 7 | -11/Scrapyard | Discovered new exit (range 16) 69 | -11/Scrapyard | Entered Materials 353 | -10/Materials | Build established: Mutant 495 | -10/Materials | Discovered new exit (range 15) 554 | -10/Materials | Entered another Materials area 554 | -9/Materials | Evolved 2 slots: Propulsion x1, Utility x1 724 | -9/Materials | Discovered new exit (range 13) 741 | -9/Materials | Entered Mines 899 | -9/Mines | Discovered new exit (range 5) 905 | -9/Mines | Entered Materials 905 | -8/Materials | Evolved 2 slots: Utility x2 1245 | -8/Materials | Discovered new exit (range 3) 1328 | -8/Materials | Entered Factory 1328 | -7/Factory | Evolved 2 slots: Power x1, Propulsion x1 1697 | -7/Factory | Discovered new exit (range 5) 1846 | -7/Factory | Entered another Factory area 1846 | -6/Factory | Evolved 2 slots: Propulsion x1, Utility x1 1994 | -6/Factory | Garrison activated, responded to threat 2107 | -6/Factory | Garrison activated, responded to threat 2502 | -6/Factory | Discovered new exit (range 5) 2511 | -6/Factory | Entered another Factory area 2511 | -5/Factory | Evolved 2 slots: Propulsion x1, Utility x1 2803 | -5/Factory | Lost 4 parts (2n1u1w) 3093 | -5/Factory | Repaired Hvy. Armor Plating 3823 | -5/Factory | Found Hvy. Reflective Plating 3852 | -5/Factory | Spotted B-75 Beast 3902 | -5/Factory | System corruption reached 10% 3957 | -5/Factory | Lost 4 parts (1p1n2u) 4005 | -5/Factory | Discovered new exit (range 15) 4011 | -5/Factory | First assault squad dispatched 4023 | -5/Factory | Entered Upper Caves 4498 | -5/Upper Caves | Lost 14 parts (3p6n3u2w) 4706 | -5/Upper Caves | Learned Factory garrison access intel 5265 | -5/Upper Caves | Build established: Derelict-Mutant 5330 | -5/Upper Caves | Attracted the attention of an 0b10 outpost 5420 | -5/Upper Caves | Lost 5 parts (1p1n3u) 5636 | -5/Upper Caves | A Derelict revealed a hidden shortcut to "reach the base" 5639 | -5/Upper Caves | Entered Warlord 5712 | -5/Warlord | System corruption cleaned by Quarantine Array 6062 | -5/Warlord | Opened side exit 6723 | -5/Warlord | Visited the Vortex Lab 6729 | -5/Warlord | Warlord's base attacked by MAIN.C 6747 | -5/Warlord | Found Prototype Energy Cannon 6750 | -5/Warlord | Found Prototype Energy Cannon 6759 | -5/Warlord | Identified Vortex Cannon (x2) 6764 | -5/Warlord | Found Prototype Energy Gun 6767 | -5/Warlord | Found Prototype Energy Gun 6768 | -5/Warlord | Identified Vortex Rail (x2) 6938 | -5/Warlord | Met Warlord 7079 | -5/Warlord | Warlord forces counterattacked 7213 | -5/Warlord | Learned location of Testing (-2) 7213 | -5/Warlord | Learned location of Command (-1) 7404 | -5/Warlord | Warlord base infiltrated, sounded retreat 7559 | -5/Warlord | Lost 3 allies 7730 | -5/Warlord | Discovered new exit (range 11) 7757 | -5/Warlord | Entered Proximity Caves 7757 | -4/Proximity Caves | Accompanied by 1 ally 7759 | -4/Proximity Caves | Spotter reported a threat 7760 | -4/Proximity Caves | Spotter reported a threat 7814 | -4/Proximity Caves | Lost 3 allies 7860 | -4/Proximity Caves | Spotted B-86 Titan 7866 | -4/Proximity Caves | Destroyed B-86 Titan 8007 | -4/Proximity Caves | Learned location of Armory (-3) 8027 | -4/Proximity Caves | Lost 3 parts (2u1w) 8106 | -4/Proximity Caves | Core integrity fell below 50% 8124 | -4/Proximity Caves | Build established: Scavenger-Mutant 8139 | -4/Proximity Caves | Spotter reported a threat 8185 | -4/Proximity Caves | Attracted the attention of an 0b10 base 8233 | -4/Proximity Caves | Destroyed 7 combat bots 8364 | -4/Proximity Caves | Discovered new exit (range 7) 8371 | -4/Proximity Caves | Entered Factory 8371 | -4/Factory | Evolved 2 slots: Utility x1, Weapon x1 8372 | -4/Factory | Identified exit to Research 8373 | -4/Factory | Loaded intel: 4 garrison access locations 8412 | -4/Factory | Identified exit to Upper Caves 8412 | -4/Factory | Identified exit to Extension 8575 | -4/Factory | Identified exit to DSF 8621 | -4/Factory | Search patrols dispatched 8661 | -4/Factory | Garrison activated, responded to threat 8974 | -4/Factory | Entered Extension 8989 | -4/Extension | Lost 18 parts (2p9n4u3w) 9108 | -4/Extension | Found Prototype Hackware 9109 | -4/Extension | Identified Exp. Hacking Suite 9134 | -4/Extension | Rescued a captive Derelict 9171 | -4/Extension | Build established: Derelict-Mutant 9224 | -4/Extension | First assault squad dispatched 9244 | -4/Extension | Lost 9 parts (1p2n6u) 9401 | -4/Extension | Lost 3 allies 9449 | -4/Extension | Disrupted transfer network 9468 | -4/Extension | Rescued a captive Derelict 9469 | -4/Extension | Rescued a captive Derelict 9728 | -4/Extension | Rescued a captive Derelict 9730 | -4/Extension | Rescued a captive Derelict 9753 | -4/Extension | Build established: Scavenger-Tank 9864 | -4/Extension | Spotted B-86 Titan 9889 | -4/Extension | Spotted B-86 Titan 9917 | -4/Extension | Core integrity fell below 50% 9927 | -4/Extension | Core integrity fell below 20% 9929 | -4/Extension | Destroyed by Y-64 Sentinel with KE Penetrator Last Messages --------------- Penetrated by Slug. B-86 Titan activates siege mode. Hcp. Storage Unit destroyed. Penetrated by Slug. Slug penetrates U-05 Engineer. U-05 Engineer destroyed. Penetrated by Slug. Extracted 15 matter. B-86 Titan activates siege mode. Acquired Matter Compressor. Adv. Coolant Injector destroyed. Acquired 12 matter. Flexi-carbon Leg destroyed. Knocked back. Flexi-carbon Leg destroyed. Penetrated by Slug. =XJFV%OK1I9#X:ZVIPMD